[Event "Titled Tuesday Blitz November 01 Late 2022"]
[White "Dubov, Daniil"]
[Black "Marcolino, Daniel Mattos"]
[WhiteFideId "24126055"]
[BlackFideId "2106841"]
[WhiteElo "2791"]
[BlackElo "2076"]
[Result "1-0"]
[Round "02"]
[TimeControl "180+1"]
[Date "2022.11.02"]
[WhiteClock "0:02:53"]
[BlackClock "0:00:46"]

1. e4 {[%clk 0:03:00]}  c6 {[%clk 0:02:59]} 2. Nc3 {[%clk 0:03:01]}  d5 {[%clk 0:02:59]} 3. Nf3 {[%clk 0:03:02]}  Bg4 {[%clk 0:02:58]} 4. h3 {[%clk 0:03:01]}  Bxf3 {[%clk 0:02:58]} 5. Qxf3 {[%clk 0:03:02]}  Nf6 {[%clk 0:02:57]} 6. d3 {[%clk 0:03:02]}  e6 {[%clk 0:02:52]} 7. g3 {[%clk 0:03:03]}  Bb4 {[%clk 0:02:47]} 8. Bg2 {[%clk 0:03:03]}  d4 {[%clk 0:02:43]} 9. a3 {[%clk 0:03:04]}  dxc3 {[%clk 0:02:42]} 10. axb4 {[%clk 0:03:04]}  cxb2 {[%clk 0:02:42]} 11. Bxb2 {[%clk 0:03:05]}  Nbd7 {[%clk 0:02:37]} 12. O-O {[%clk 0:03:04]}  Qb6 {[%clk 0:02:33]} 13. c3 {[%clk 0:03:02]}  O-O {[%clk 0:02:29]} 14. d4 {[%clk 0:03:02]}  e5 {[%clk 0:02:29]} 15. Qe2 {[%clk 0:03:02]}  Rfe8 {[%clk 0:02:24]} 16. Kh2 {[%clk 0:03:02]}  exd4 {[%clk 0:02:18]} 17. cxd4 {[%clk 0:03:03]}  Nd5 {[%clk 0:02:16]} 18. f4 {[%clk 0:03:00]}  Nxb4 {[%clk 0:02:14]} 19. Rfb1 {[%clk 0:03:00]}  a5 {[%clk 0:02:11]} 20. Bc3 {[%clk 0:02:59]}  Qa6 {[%clk 0:02:04]} 21. Qb2 {[%clk 0:02:54]}  Qd3 {[%clk 0:01:50]} 22. Ra3 {[%clk 0:02:53]}  Qc4 {[%clk 0:01:28]} 23. Bxb4 {[%clk 0:02:50]}  axb4 {[%clk 0:01:27]} 24. Rxa8 {[%clk 0:02:50]}  Rxa8 {[%clk 0:01:26]} 25. Qxb4 {[%clk 0:02:51]}  Qxb4 {[%clk 0:01:26]} 26. Rxb4 {[%clk 0:02:51]}  b5 {[%clk 0:01:27]} 27. e5 {[%clk 0:02:52]}  Ra2 {[%clk 0:01:20]} 28. h4 {[%clk 0:02:52]}  Kf8 {[%clk 0:01:14]} 29. Kh3 {[%clk 0:02:52]}  Rc2 {[%clk 0:01:11]} 30. d5 {[%clk 0:02:52]}  cxd5 {[%clk 0:01:04]} 31. Rxb5 {[%clk 0:02:52]}  d4 {[%clk 0:01:00]} 32. Rd5 {[%clk 0:02:52]}  Ke7 {[%clk 0:00:53]} 33. Rxd4 {[%clk 0:02:53]}  f6 {[%clk 0:00:49]} 34. Be4 {[%clk 0:02:52]}  fxe5 {[%clk 0:00:48]} 35. Rxd7+ {[%clk 0:02:52]}  Kxd7 {[%clk 0:00:46]} 36. Bxc2 {[%clk 0:02:52]}  exf4 {[%clk 0:00:46]} 37. gxf4 {[%clk 0:02:53]} 1-0


[Site "https://www.chess.com"]

[Event "Titled Tuesday Blitz November 01 Late 2022"]
[White "Ekdyshman, Mikhail"]
[Black "Hughes, Tyler B"]
[WhiteFideId "4149416"]
[BlackFideId "2026775"]
[WhiteElo "2164"]
[BlackElo "2296"]
[Result "1-0"]
[Round "02"]
[TimeControl "180+1"]
[Date "2022.11.02"]
[WhiteClock "0:00:15"]
[BlackClock "0:00:02"]

1. e4 {[%clk 0:02:59]}  c6 {[%clk 0:02:57]} 2. d4 {[%clk 0:02:58]}  d5 {[%clk 0:02:56]} 3. exd5 {[%clk 0:02:58]}  cxd5 {[%clk 0:02:56]} 4. c4 {[%clk 0:02:59]}  Nf6 {[%clk 0:02:56]} 5. Nc3 {[%clk 0:03:00]}  Nc6 {[%clk 0:02:55]} 6. Nf3 {[%clk 0:02:59]}  Bg4 {[%clk 0:02:55]} 7. cxd5 {[%clk 0:02:57]}  Nxd5 {[%clk 0:02:54]} 8. Qb3 {[%clk 0:02:56]}  Nb6 {[%clk 0:02:49]} 9. d5 {[%clk 0:02:38]}  Bxf3 {[%clk 0:02:44]} 10. gxf3 {[%clk 0:02:33]}  Nd4 {[%clk 0:02:44]} 11. Qd1 {[%clk 0:02:25]}  e5 {[%clk 0:02:38]} 12. dxe6 {[%clk 0:02:22]}  Nxe6 {[%clk 0:02:30]} 13. Bb5+ {[%clk 0:02:22]}  Nd7 {[%clk 0:02:29]} 14. O-O {[%clk 0:01:59]}  a6 {[%clk 0:02:17]} 15. Ba4 {[%clk 0:01:58]}  Be7 {[%clk 0:01:47]} 16. Re1 {[%clk 0:01:55]}  b5 {[%clk 0:01:40]} 17. Bb3 {[%clk 0:01:53]}  Ndc5 {[%clk 0:01:35]} 18. Bd5 {[%clk 0:01:50]}  Rc8 {[%clk 0:01:31]} 19. b4 {[%clk 0:01:35]}  Nd7 {[%clk 0:01:29]} 20. Bb2 {[%clk 0:01:30]}  Ndf8 {[%clk 0:00:32]} 21. Qb3 {[%clk 0:01:16]}  h5 {[%clk 0:00:28]} 22. Rad1 {[%clk 0:01:13]}  Qc7 {[%clk 0:00:27]} 23. a4 {[%clk 0:00:51]}  Rh6 {[%clk 0:00:18]} 24. axb5 {[%clk 0:00:47]}  Rg6+ {[%clk 0:00:17]} 25. Kh1 {[%clk 0:00:47]}  axb5 {[%clk 0:00:15]} 26. Nxb5 {[%clk 0:00:47]}  Qb6 {[%clk 0:00:15]} 27. Nd4 {[%clk 0:00:34]}  Qxb4 {[%clk 0:00:10]} 28. Bc6+ {[%clk 0:00:28]}  Rxc6 {[%clk 0:00:09]} 29. Qxb4 {[%clk 0:00:28]}  Bxb4 {[%clk 0:00:09]} 30. Nxc6 {[%clk 0:00:26]}  Bxe1 {[%clk 0:00:09]} 31. Rxe1 {[%clk 0:00:24]}  Nd7 {[%clk 0:00:07]} 32. Rd1 {[%clk 0:00:20]}  f5 {[%clk 0:00:04]} 33. Rxd7 {[%clk 0:00:19]}  Ng5 {[%clk 0:00:02]} 34. Rxg7 {[%clk 0:00:16]}  Rxc6 {[%clk 0:00:01]} 35. Rxg5 {[%clk 0:00:16]}  Rc2 {[%clk 0:00:02]} 36. Bd4 {[%clk 0:00:15]}  Kf7 {[%clk 0:00:02]} 37. Rxf5+ {[%clk 0:00:15]}  Ke6 {[%clk 0:00:02]} 38. Rxh5 {[%clk 0:00:15]} 1-0


[Site "https://www.chess.com"]

[Event "Titled Tuesday Blitz November 01 Late 2022"]
[White "Erigaisi Arjun"]
[Black "Leitao, Rafael"]
[WhiteFideId "35009192"]
[BlackFideId "2101246"]
[WhiteElo "2745"]
[BlackElo "2609"]
[Result "1-0"]
[Round "02"]
[TimeControl "180+1"]
[Date "2022.11.01"]
[WhiteClock "0:01:22"]
[BlackClock "0:00:18"]

1. b3 {[%clk 0:03:00]}  d5 {[%clk 0:02:53]} 2. Bb2 {[%clk 0:02:59]}  Bf5 {[%clk 0:02:53]} 3. d3 {[%clk 0:02:57]}  e6 {[%clk 0:02:53]} 4. Nf3 {[%clk 0:02:54]}  Nf6 {[%clk 0:02:52]} 5. g3 {[%clk 0:02:53]}  h6 {[%clk 0:02:52]} 6. Bg2 {[%clk 0:02:54]}  Be7 {[%clk 0:02:52]} 7. O-O {[%clk 0:02:54]}  O-O {[%clk 0:02:52]} 8. Nbd2 {[%clk 0:02:55]}  Bh7 {[%clk 0:02:50]} 9. Qe1 {[%clk 0:02:50]}  c5 {[%clk 0:02:49]} 10. e4 {[%clk 0:02:50]}  Nc6 {[%clk 0:02:49]} 11. Qe2 {[%clk 0:02:46]}  a5 {[%clk 0:02:35]} 12. a4 {[%clk 0:02:45]}  Nb4 {[%clk 0:02:31]} 13. Rac1 {[%clk 0:02:42]}  Re8 {[%clk 0:02:18]} 14. Rfe1 {[%clk 0:02:41]}  Bf8 {[%clk 0:02:13]} 15. Ne5 {[%clk 0:02:37]}  Nd7 {[%clk 0:02:09]} 16. Nxd7 {[%clk 0:02:23]}  Qxd7 {[%clk 0:02:09]} 17. Nb1 {[%clk 0:02:24]}  Nc6 {[%clk 0:02:00]} 18. Qe3 {[%clk 0:02:18]}  Rad8 {[%clk 0:01:47]} 19. h4 {[%clk 0:02:17]}  dxe4 {[%clk 0:01:25]} 20. Bxe4 {[%clk 0:02:15]}  Bxe4 {[%clk 0:01:24]} 21. Qxe4 {[%clk 0:02:15]}  Nd4 {[%clk 0:01:22]} 22. Nd2 {[%clk 0:02:11]}  f5 {[%clk 0:01:21]} 23. Qg2 {[%clk 0:02:06]}  e5 {[%clk 0:01:21]} 24. Nc4 {[%clk 0:02:04]}  Qc7 {[%clk 0:01:22]} 25. Bxd4 {[%clk 0:01:59]}  cxd4 {[%clk 0:01:16]} 26. Qf3 {[%clk 0:01:59]}  Bb4 {[%clk 0:01:14]} 27. Re2 {[%clk 0:01:58]}  f4 {[%clk 0:00:53]} 28. g4 {[%clk 0:01:56]}  Qe7 {[%clk 0:00:48]} 29. g5 {[%clk 0:01:43]}  hxg5 {[%clk 0:00:41]} 30. Rxe5 {[%clk 0:01:43]}  Qf6 {[%clk 0:00:40]} 31. Rxg5 {[%clk 0:01:34]}  Re7 {[%clk 0:00:39]} 32. Kh2 {[%clk 0:01:32]}  Qh6 {[%clk 0:00:33]} 33. Rh5 {[%clk 0:01:29]}  Qf6 {[%clk 0:00:34]} 34. Rg1 {[%clk 0:01:29]}  Kf7 {[%clk 0:00:24]} 35. Rgg5 {[%clk 0:01:25]}  Kg8 {[%clk 0:00:18]} 36. Ne5 {[%clk 0:01:22]} 1-0


[Site "https://www.chess.com"]

[Event "Titled Tuesday Blitz November 01 Late 2022"]
[White "Firouzja, Alireza"]
[Black "Bjelobrk, Igor"]
[WhiteFideId "12573981"]
[BlackFideId "4300726"]
[WhiteElo "2903"]
[BlackElo "2335"]
[Result "1-0"]
[Round "02"]
[TimeControl "180+1"]
[Date "2022.11.01"]
[WhiteClock "0:01:13"]
[BlackClock "0:00:03"]

1. e4 {[%clk 0:03:00]}  e5 {[%clk 0:02:58]} 2. Nf3 {[%clk 0:02:59]}  Nc6 {[%clk 0:02:58]} 3. Bb5 {[%clk 0:02:57]}  a6 {[%clk 0:02:58]} 4. Ba4 {[%clk 0:02:55]}  Bc5 {[%clk 0:02:58]} 5. c3 {[%clk 0:02:55]}  Nge7 {[%clk 0:02:57]} 6. O-O {[%clk 0:02:54]}  Ng6 {[%clk 0:02:57]} 7. d4 {[%clk 0:02:54]}  Ba7 {[%clk 0:02:56]} 8. Be3 {[%clk 0:02:50]}  O-O {[%clk 0:02:54]} 9. Nbd2 {[%clk 0:02:49]}  d6 {[%clk 0:02:52]} 10. h3 {[%clk 0:02:48]}  Bd7 {[%clk 0:02:40]} 11. Re1 {[%clk 0:02:46]}  f6 {[%clk 0:02:37]} 12. Nf1 {[%clk 0:02:44]}  Kh8 {[%clk 0:02:34]} 13. Ng3 {[%clk 0:02:43]}  Qe8 {[%clk 0:02:34]} 14. Bc2 {[%clk 0:02:41]}  a5 {[%clk 0:02:34]} 15. a3 {[%clk 0:02:40]}  a4 {[%clk 0:02:28]} 16. Bd3 {[%clk 0:02:22]}  Na5 {[%clk 0:02:26]} 17. Qc2 {[%clk 0:02:22]}  Nb3 {[%clk 0:02:25]} 18. Rad1 {[%clk 0:02:22]}  b5 {[%clk 0:02:19]} 19. Bf1 {[%clk 0:02:20]}  Be6 {[%clk 0:02:05]} 20. d5 {[%clk 0:02:16]}  Bd7 {[%clk 0:02:03]} 21. Bxa7 {[%clk 0:02:11]}  Rxa7 {[%clk 0:02:04]} 22. c4 {[%clk 0:02:11]}  Nf4 {[%clk 0:01:56]} 23. Ne2 {[%clk 0:02:06]}  g5 {[%clk 0:01:53]} 24. cxb5 {[%clk 0:02:02]}  Nc5 {[%clk 0:01:47]} 25. Nc3 {[%clk 0:01:45]}  g4 {[%clk 0:01:45]} 26. hxg4 {[%clk 0:01:46]}  Bxg4 {[%clk 0:01:46]} 27. Re3 {[%clk 0:01:45]}  Rg8 {[%clk 0:01:45]} 28. Rde1 {[%clk 0:01:41]}  Qh5 {[%clk 0:01:45]} 29. Nh2 {[%clk 0:01:40]}  Raa8 {[%clk 0:01:09]} 30. Rg3 {[%clk 0:01:38]}  Bd7 {[%clk 0:01:08]} 31. Ree3 {[%clk 0:01:38]}  f5 {[%clk 0:01:02]} 32. Rxg8+ {[%clk 0:01:34]}  Rxg8 {[%clk 0:01:01]} 33. Rg3 {[%clk 0:01:35]}  Rxg3 {[%clk 0:00:55]} 34. fxg3 {[%clk 0:01:36]}  Ng6 {[%clk 0:00:54]} 35. exf5 {[%clk 0:01:30]}  Bxf5 {[%clk 0:00:55]} 36. Qf2 {[%clk 0:01:30]}  e4 {[%clk 0:00:46]} 37. g4 {[%clk 0:01:15]}  Bxg4 {[%clk 0:00:45]} 38. Qf6+ {[%clk 0:01:15]}  Kg8 {[%clk 0:00:45]} 39. Qd8+ {[%clk 0:01:16]}  Kg7 {[%clk 0:00:46]} 40. Qxc7+ {[%clk 0:01:17]}  Kh6 {[%clk 0:00:46]} 41. Qxd6 {[%clk 0:01:16]}  Nd3 {[%clk 0:00:24]} 42. Nxe4 {[%clk 0:01:15]}  Ne5 {[%clk 0:00:21]} 43. Nf6 {[%clk 0:01:14]}  Qg5 {[%clk 0:00:21]} 44. Nhxg4+ {[%clk 0:01:14]}  Nxg4 {[%clk 0:00:21]} 45. Nxg4+ {[%clk 0:01:15]}  Qxg4 {[%clk 0:00:21]} 46. Qf6 {[%clk 0:01:15]}  Qd1 {[%clk 0:00:15]} 47. d6 {[%clk 0:01:15]}  Qd5 {[%clk 0:00:09]} 48. b6 {[%clk 0:01:13]}  Qc6 {[%clk 0:00:06]} 49. Qd4 {[%clk 0:01:12]}  Qd7 {[%clk 0:00:03]} 50. b7 {[%clk 0:01:13]} 1-0


[Site "https://www.chess.com"]

[Event "Titled Tuesday Blitz November 01 Late 2022"]
[White "Gallegos Diaz, Carlos Alberto"]
[Black "Ozdemir, Serhan Berat"]
[WhiteFideId "3900886"]
[BlackFideId "6374611"]
[WhiteElo "2362"]
[BlackElo "2016"]
[Result "0-1"]
[Round "02"]
[TimeControl "180+1"]
[Date "2022.11.02"]
[WhiteClock "0:00:00"]
[BlackClock "0:00:01"]

1. e4 {[%clk 0:03:00]}  c5 {[%clk 0:02:59]} 2. Nf3 {[%clk 0:03:00]}  e6 {[%clk 0:03:00]} 3. d3 {[%clk 0:02:59]}  d5 {[%clk 0:02:59]} 4. Nbd2 {[%clk 0:03:00]}  Nc6 {[%clk 0:02:59]} 5. Be2 {[%clk 0:02:59]}  Nf6 {[%clk 0:02:58]} 6. O-O {[%clk 0:02:59]}  Be7 {[%clk 0:02:56]} 7. c3 {[%clk 0:02:58]}  Qc7 {[%clk 0:02:54]} 8. Re1 {[%clk 0:02:58]}  O-O {[%clk 0:02:53]} 9. Bf1 {[%clk 0:02:57]}  b6 {[%clk 0:02:53]} 10. h3 {[%clk 0:02:55]}  Bb7 {[%clk 0:02:52]} 11. a3 {[%clk 0:02:52]}  Rfd8 {[%clk 0:02:49]} 12. b4 {[%clk 0:02:44]}  a6 {[%clk 0:02:30]} 13. Bb2 {[%clk 0:02:37]}  b5 {[%clk 0:01:42]} 14. e5 {[%clk 0:01:53]}  Nd7 {[%clk 0:01:40]} 15. d4 {[%clk 0:01:38]}  cxd4 {[%clk 0:01:41]} 16. cxd4 {[%clk 0:01:37]}  Nb6 {[%clk 0:01:42]} 17. Nb3 {[%clk 0:01:34]}  Nc4 {[%clk 0:01:40]} 18. Qc2 {[%clk 0:01:30]}  a5 {[%clk 0:01:37]} 19. bxa5 {[%clk 0:01:22]}  N6xa5 {[%clk 0:01:38]} 20. Nxa5 {[%clk 0:01:21]}  Qxa5 {[%clk 0:01:15]} 21. Bc3 {[%clk 0:00:56]}  Qa4 {[%clk 0:01:02]} 22. Qxa4 {[%clk 0:00:29]}  Rxa4 {[%clk 0:00:56]} 23. Bb4 {[%clk 0:00:29]}  Bxb4 {[%clk 0:00:52]} 24. axb4 {[%clk 0:00:30]}  Rda8 {[%clk 0:00:51]} 25. Rab1 {[%clk 0:00:25]}  h6 {[%clk 0:00:42]} 26. Rec1 {[%clk 0:00:19]}  Ra3 {[%clk 0:00:39]} 27. Ne1 {[%clk 0:00:19]}  f6 {[%clk 0:00:28]} 28. Nd3 {[%clk 0:00:17]}  fxe5 {[%clk 0:00:21]} 29. Nxe5 {[%clk 0:00:15]}  Kf8 {[%clk 0:00:13]} 30. Nd7+ {[%clk 0:00:12]}  Ke7 {[%clk 0:00:13]} 31. Nc5 {[%clk 0:00:13]}  Bc6 {[%clk 0:00:12]} 32. Re1 {[%clk 0:00:14]}  Bd7 {[%clk 0:00:12]} 33. Bxc4 {[%clk 0:00:12]}  bxc4 {[%clk 0:00:11]} 34. b5 {[%clk 0:00:13]}  Kd6 {[%clk 0:00:08]} 35. b6 {[%clk 0:00:12]}  Rb8 {[%clk 0:00:08]} 36. b7 {[%clk 0:00:09]}  c3 {[%clk 0:00:04]} 37. Rb6+ {[%clk 0:00:08]}  Kc7 {[%clk 0:00:05]} 38. Nxd7 {[%clk 0:00:08]}  Rxb7 {[%clk 0:00:03]} 39. Rxb7+ {[%clk 0:00:07]}  Kxb7 {[%clk 0:00:04]} 40. Nc5+ {[%clk 0:00:07]}  Kc6 {[%clk 0:00:05]} 41. Rc1 {[%clk 0:00:06]}  Kb5 {[%clk 0:00:05]} 42. Nxe6 {[%clk 0:00:06]}  Kc4 {[%clk 0:00:06]} 43. Kh2 {[%clk 0:00:04]}  Ra2 {[%clk 0:00:05]} 44. Kg3 {[%clk 0:00:03]}  Rd2 {[%clk 0:00:04]} 45. Kf3 {[%clk 0:00:03]}  Kd3 {[%clk 0:00:01]} 46. Nf4+ {[%clk 0:00:02]}  Kxd4 {[%clk 0:00:01]} 47. Ne2+ {[%clk 0:00:02]}  Kd3 {[%clk 0:00:01]} 48. Nxc3 {[%clk 0:00:00]}  Kc4 {[%clk 0:00:01]} 0-1


[Site "https://www.chess.com"]

[Event "Titled Tuesday Blitz November 01 Late 2022"]
[White "Goltseva, Ekaterina"]
[Black "Grot, Blazej"]
[WhiteFideId "24173770"]
[BlackFideId "21835845"]
[WhiteElo "2200"]
[BlackElo "1739"]
[Result "1-0"]
[Round "02"]
[TimeControl "180+1"]
[Date "2022.11.02"]
[WhiteClock "0:00:03"]
[BlackClock "0:00:01"]

1. Nf3 {[%clk 0:02:08]}  d5 {[%clk 0:02:58]} 2. g3 {[%clk 0:02:08]}  Nf6 {[%clk 0:02:57]} 3. Bg2 {[%clk 0:02:09]}  c5 {[%clk 0:02:57]} 4. O-O {[%clk 0:02:08]}  Nc6 {[%clk 0:02:58]} 5. c4 {[%clk 0:02:09]}  e6 {[%clk 0:02:51]} 6. cxd5 {[%clk 0:02:08]}  exd5 {[%clk 0:02:51]} 7. d4 {[%clk 0:02:08]}  Bg4 {[%clk 0:02:47]} 8. dxc5 {[%clk 0:02:05]}  Bxc5 {[%clk 0:02:47]} 9. a3 {[%clk 0:02:04]}  a5 {[%clk 0:02:38]} 10. Nc3 {[%clk 0:02:02]}  O-O {[%clk 0:02:37]} 11. Bg5 {[%clk 0:02:01]}  Be6 {[%clk 0:02:24]} 12. Rc1 {[%clk 0:01:56]}  Be7 {[%clk 0:02:19]} 13. Nd4 {[%clk 0:01:51]}  Nxd4 {[%clk 0:02:14]} 14. Qxd4 {[%clk 0:01:52]}  Rc8 {[%clk 0:02:11]} 15. Rfd1 {[%clk 0:01:45]}  h6 {[%clk 0:02:03]} 16. Bf4 {[%clk 0:01:39]}  Bc5 {[%clk 0:02:02]} 17. Qd2 {[%clk 0:01:37]}  d4 {[%clk 0:01:18]} 18. Nb5 {[%clk 0:01:28]}  Qb6 {[%clk 0:01:08]} 19. Nxd4 {[%clk 0:01:22]}  Rfd8 {[%clk 0:01:00]} 20. Be3 {[%clk 0:00:56]}  Ng4 {[%clk 0:00:42]} 21. b4 {[%clk 0:00:34]}  axb4 {[%clk 0:00:41]} 22. axb4 {[%clk 0:00:32]}  Bxb4 {[%clk 0:00:39]} 23. Nxe6 {[%clk 0:00:22]}  Nxe3 {[%clk 0:00:26]} 24. Qxe3 {[%clk 0:00:19]}  Qxe3 {[%clk 0:00:21]} 25. fxe3 {[%clk 0:00:16]}  fxe6 {[%clk 0:00:18]} 26. Rxc8 {[%clk 0:00:14]}  Rxc8 {[%clk 0:00:16]} 27. Bxb7 {[%clk 0:00:14]}  Rb8 {[%clk 0:00:15]} 28. Be4 {[%clk 0:00:13]}  Bc5 {[%clk 0:00:16]} 29. Kf2 {[%clk 0:00:13]}  Rb3 {[%clk 0:00:15]} 30. Rd8+ {[%clk 0:00:14]}  Kf7 {[%clk 0:00:14]} 31. Bd3 {[%clk 0:00:15]}  Be7 {[%clk 0:00:10]} 32. Rd7 {[%clk 0:00:15]}  Rb6 {[%clk 0:00:09]} 33. Kf3 {[%clk 0:00:15]}  Rd6 {[%clk 0:00:09]} 34. Rb7 {[%clk 0:00:15]}  g5 {[%clk 0:00:07]} 35. Kg4 {[%clk 0:00:11]}  Kf6 {[%clk 0:00:04]} 36. Kh5 {[%clk 0:00:11]}  Bf8 {[%clk 0:00:05]} 37. Bg6 {[%clk 0:00:09]}  Be7 {[%clk 0:00:02]} 38. Kxh6 {[%clk 0:00:09]}  Rd8 {[%clk 0:00:03]} 39. Kh7 {[%clk 0:00:07]}  Rd2 {[%clk 0:00:02]} 40. Bd3 {[%clk 0:00:07]}  Rd1 {[%clk 0:00:02]} 41. Kg8 {[%clk 0:00:04]}  Rh1 {[%clk 0:00:02]} 42. Rb6 {[%clk 0:00:03]}  Rxh2 {[%clk 0:00:02]} 43. Bc4 {[%clk 0:00:04]}  Rg2 {[%clk 0:00:02]} 44. Rxe6+ {[%clk 0:00:04]}  Kf5 {[%clk 0:00:01]} 45. Rxe7 {[%clk 0:00:05]}  Rxg3 {[%clk 0:00:02]} 46. e4+ {[%clk 0:00:03]}  Kf6 {[%clk 0:00:01]} 47. Re6# {[%clk 0:00:03]} 1-0


[Site "https://www.chess.com"]

[Event "Titled Tuesday Blitz November 01 Late 2022"]
[White "Gubajdullin, Alexei"]
[Black "Castella Garcia, Fausto"]
[WhiteFideId "4141202"]
[BlackFideId "3501922"]
[WhiteElo "2200"]
[BlackElo "2246"]
[Result "1-0"]
[Round "02"]
[TimeControl "180+1"]
[Date "2022.11.02"]
[WhiteClock "0:01:17"]
[BlackClock "0:00:50"]

1. d4 {[%clk 0:03:00]}  Nf6 {[%clk 0:02:59]} 2. Nf3 {[%clk 0:03:00]}  g6 {[%clk 0:02:58]} 3. Bf4 {[%clk 0:02:50]}  Bg7 {[%clk 0:02:58]} 4. e3 {[%clk 0:02:48]}  d6 {[%clk 0:02:58]} 5. Be2 {[%clk 0:02:48]}  O-O {[%clk 0:02:57]} 6. O-O {[%clk 0:02:47]}  Nfd7 {[%clk 0:02:57]} 7. h3 {[%clk 0:02:45]}  e5 {[%clk 0:02:57]} 8. Bh2 {[%clk 0:02:45]}  e4 {[%clk 0:02:52]} 9. Nfd2 {[%clk 0:02:44]}  f5 {[%clk 0:02:52]} 10. c4 {[%clk 0:02:36]}  Nc6 {[%clk 0:02:50]} 11. Nc3 {[%clk 0:02:31]}  Nf6 {[%clk 0:02:44]} 12. Qa4 {[%clk 0:02:29]}  g5 {[%clk 0:02:40]} 13. b4 {[%clk 0:02:28]}  Ne7 {[%clk 0:02:39]} 14. b5 {[%clk 0:02:28]}  Ng6 {[%clk 0:02:37]} 15. b6 {[%clk 0:02:28]}  cxb6 {[%clk 0:02:30]} 16. Nb5 {[%clk 0:02:26]}  f4 {[%clk 0:02:27]} 17. Qa3 {[%clk 0:02:23]}  f3 {[%clk 0:02:06]} 18. gxf3 {[%clk 0:02:22]}  Bxh3 {[%clk 0:02:03]} 19. fxe4 {[%clk 0:02:11]}  Bxf1 {[%clk 0:01:42]} 20. Rxf1 {[%clk 0:02:10]}  Ne8 {[%clk 0:01:34]} 21. Nxd6 {[%clk 0:02:05]}  Nxd6 {[%clk 0:01:23]} 22. Qxd6 {[%clk 0:02:03]}  Qc8 {[%clk 0:01:06]} 23. Qg3 {[%clk 0:01:50]}  h6 {[%clk 0:01:00]} 24. Bg4 {[%clk 0:01:48]}  Qe8 {[%clk 0:00:54]} 25. e5 {[%clk 0:01:46]}  Nh4 {[%clk 0:00:52]} 26. d5 {[%clk 0:01:18]}  Bxe5 {[%clk 0:00:50]} 27. Qxe5 {[%clk 0:01:17]} 1-0


[Site "https://www.chess.com"]

[Event "Titled Tuesday Blitz November 01 Late 2022"]
[White "Hemam, Moulaye Brahim"]
[Black "Goltsev, Dmitry"]
[WhiteFideId "19600054"]
[BlackFideId "24176710"]
[WhiteElo "2088"]
[BlackElo "2257"]
[Result "0-1"]
[Round "02"]
[TimeControl "180+1"]
[Date "2022.11.02"]
[WhiteClock "0:00:43"]
[BlackClock "0:02:29"]

1. e4 {[%clk 0:02:59]}  e6 {[%clk 0:03:00]} 2. d4 {[%clk 0:02:55]}  d5 {[%clk 0:03:00]} 3. Nc3 {[%clk 0:02:48]}  c5 {[%clk 0:02:59]} 4. Nf3 {[%clk 0:02:39]}  Nf6 {[%clk 0:02:59]} 5. e5 {[%clk 0:02:38]}  Ne4 {[%clk 0:02:59]} 6. Bd3 {[%clk 0:02:34]}  Nxc3 {[%clk 0:02:57]} 7. bxc3 {[%clk 0:02:35]}  Nc6 {[%clk 0:02:57]} 8. O-O {[%clk 0:02:27]}  Be7 {[%clk 0:02:57]} 9. Be3 {[%clk 0:02:15]}  g5 {[%clk 0:02:56]} 10. Nd2 {[%clk 0:02:03]}  h5 {[%clk 0:02:53]} 11. Bb5 {[%clk 0:01:53]}  Bd7 {[%clk 0:02:48]} 12. Bxc6 {[%clk 0:01:52]}  Bxc6 {[%clk 0:02:49]} 13. f4 {[%clk 0:01:51]}  g4 {[%clk 0:02:46]} 14. f5 {[%clk 0:01:51]}  Qa5 {[%clk 0:02:44]} 15. c4 {[%clk 0:01:32]}  Qc3 {[%clk 0:02:40]} 16. Qe1 {[%clk 0:01:25]}  cxd4 {[%clk 0:02:39]} 17. Bf2 {[%clk 0:01:17]}  dxc4 {[%clk 0:02:39]} 18. f6 {[%clk 0:01:13]}  Bb4 {[%clk 0:02:38]} 19. Ne4 {[%clk 0:01:11]}  Qxe1 {[%clk 0:02:36]} 20. Bxe1 {[%clk 0:01:11]}  Bxe4 {[%clk 0:02:35]} 21. Bxb4 {[%clk 0:01:10]}  Bxc2 {[%clk 0:02:35]} 22. Rac1 {[%clk 0:01:01]}  d3 {[%clk 0:02:35]} 23. Kf2 {[%clk 0:01:01]}  a5 {[%clk 0:02:32]} 24. Bc3 {[%clk 0:01:01]}  b5 {[%clk 0:02:31]} 25. a3 {[%clk 0:01:00]}  Kd7 {[%clk 0:02:31]} 26. Ke3 {[%clk 0:01:00]}  Rhb8 {[%clk 0:02:31]} 27. Kf4 {[%clk 0:00:55]}  b4 {[%clk 0:02:32]} 28. axb4 {[%clk 0:00:55]}  axb4 {[%clk 0:02:33]} 29. Bd4 {[%clk 0:00:49]}  c3 {[%clk 0:02:31]} 30. Kg5 {[%clk 0:00:45]}  Ra2 {[%clk 0:02:31]} 31. Kxh5 {[%clk 0:00:45]}  d2 {[%clk 0:02:31]} 32. Rcd1 {[%clk 0:00:42]}  Bxd1 {[%clk 0:02:31]} 33. Rxd1 {[%clk 0:00:43]}  c2 {[%clk 0:02:29]} 0-1


[Site "https://www.chess.com"]

[Event "Titled Tuesday Blitz November 01 Late 2022"]
[White "Hjartarson, Johann"]
[Black "Paravyan, David"]
[WhiteFideId "2300044"]
[BlackFideId "4194985"]
[WhiteElo "2458"]
[BlackElo "2555"]
[Result "0-1"]
[Round "02"]
[TimeControl "180+1"]
[Date "2022.11.01"]
[WhiteClock "0:00:54"]
[BlackClock "0:00:26"]

1. e4 {[%clk 0:03:00]}  e5 {[%clk 0:02:59]} 2. Nf3 {[%clk 0:03:00]}  Nf6 {[%clk 0:03:00]} 3. Nxe5 {[%clk 0:02:58]}  d6 {[%clk 0:03:00]} 4. Nc4 {[%clk 0:02:57]}  Nxe4 {[%clk 0:03:00]} 5. d4 {[%clk 0:02:56]}  d5 {[%clk 0:02:58]} 6. Ne3 {[%clk 0:02:56]}  Be6 {[%clk 0:02:52]} 7. Bd3 {[%clk 0:02:55]}  Nc6 {[%clk 0:02:50]} 8. O-O {[%clk 0:02:51]}  Nxd4 {[%clk 0:02:40]} 9. c4 {[%clk 0:02:49]}  c6 {[%clk 0:02:24]} 10. cxd5 {[%clk 0:02:43]}  cxd5 {[%clk 0:02:25]} 11. Nc3 {[%clk 0:02:32]}  Nxc3 {[%clk 0:02:24]} 12. bxc3 {[%clk 0:02:31]}  Nc6 {[%clk 0:02:24]} 13. Rb1 {[%clk 0:02:26]}  Qd7 {[%clk 0:02:05]} 14. Re1 {[%clk 0:02:23]}  Be7 {[%clk 0:02:04]} 15. Qh5 {[%clk 0:02:18]}  g6 {[%clk 0:02:00]} 16. Qh6 {[%clk 0:02:12]}  O-O-O {[%clk 0:01:58]} 17. Nc2 {[%clk 0:01:55]}  Bc5 {[%clk 0:01:32]} 18. Bb5 {[%clk 0:01:46]}  a6 {[%clk 0:01:29]} 19. Ba4 {[%clk 0:01:42]}  Bf5 {[%clk 0:01:06]} 20. Bg5 {[%clk 0:01:34]}  Rde8 {[%clk 0:01:01]} 21. Rbd1 {[%clk 0:01:24]}  Rxe1+ {[%clk 0:01:00]} 22. Nxe1 {[%clk 0:01:22]}  Bg4 {[%clk 0:00:49]} 23. Rc1 {[%clk 0:01:14]}  Qf5 {[%clk 0:00:39]} 24. Be3 {[%clk 0:01:08]}  Bxe3 {[%clk 0:00:30]} 25. Qxe3 {[%clk 0:01:07]}  Qe4 {[%clk 0:00:28]} 26. Qb6 {[%clk 0:00:54]}  Qxa4 {[%clk 0:00:26]} 0-1


[Site "https://www.chess.com"]